[Event "*** SCC Grand Prix: Titled Tuesday Blitz"]
[Site "Chess.com"]
[Date "2020.10.06"]
[Round "5"]
[White "PlotnikovPavel"]
[Black "PawnEatingZombie"]
[Result "1-0"]
[WhiteElo "2365"]
[BlackElo "2200"]
[TimeControl "180+1"]
[EndTime "10:56:57 PDT"]
[Termination "PlotnikovPavel won on time"]

1. e4 {[%clk 0:03:00.9]} 1... c6 {[%clk 0:02:59.7]} 2. d3 {[%clk 0:03:00.3]}
2... d5 {[%clk 0:03:00.6]} 3. Nd2 {[%clk 0:03:00.8]} 3... e5 {[%clk 0:03:00.1]}
4. Ngf3 {[%clk 0:03:00.7]} 4... Bd6 {[%clk 0:03:00.2]} 5. g3 {[%clk 0:03:01]}
5... Nf6 {[%clk 0:03:00.6]} 6. Bg2 {[%clk 0:03:01]} 6... O-O {[%clk 0:03:01]} 7.
O-O {[%clk 0:03:01.1]} 7... Re8 {[%clk 0:03:01.4]} 8. b3 {[%clk 0:03:01.3]} 8...
a5 {[%clk 0:02:56.2]} 9. Bb2 {[%clk 0:03:01.3]} 9... Nbd7 {[%clk 0:02:51.8]} 10.
a4 {[%clk 0:03:00]} 10... Qc7 {[%clk 0:02:42.1]} 11. Re1 {[%clk 0:02:57]} 11...
dxe4 {[%clk 0:02:37.5]} 12. dxe4 {[%clk 0:02:56.6]} 12... Bf8 {[%clk 0:02:35.9]}
13. Nc4 {[%clk 0:02:56.6]} 13... b6 {[%clk 0:02:21]} 14. Qd2 {[%clk 0:02:46.4]}
14... Ba6 {[%clk 0:02:16.6]} 15. Qe2 {[%clk 0:02:39.2]} 15... Bc5 {[%clk
0:01:51.3]} 16. Nh4 {[%clk 0:02:33]} 16... h5 {[%clk 0:01:34.2]} 17. Nf5 {[%clk
0:02:24.6]} 17... Ng4 {[%clk 0:01:31.9]} 18. Rf1 {[%clk 0:02:20.6]} 18... b5
{[%clk 0:00:58.1]} 19. axb5 {[%clk 0:02:11.1]} 19... cxb5 {[%clk 0:00:58.6]} 20.
Nce3 {[%clk 0:02:00.4]} 20... Bxe3 {[%clk 0:00:41.4]} 21. Nxe3 {[%clk
0:01:56.7]} 21... b4 {[%clk 0:00:41.4]} 22. Nc4 {[%clk 0:01:52.9]} 22... Bxc4
{[%clk 0:00:40.7]} 23. Qxc4 {[%clk 0:01:52.5]} 23... Qxc4 {[%clk 0:00:40]} 24.
bxc4 {[%clk 0:01:53.4]} 24... Nc5 {[%clk 0:00:36.1]} 25. Rfd1 {[%clk 0:01:47.1]}
25... a4 {[%clk 0:00:28.8]} 26. Rd5 {[%clk 0:01:43.1]} 26... a3 {[%clk
0:00:28.9]} 27. Bc1 {[%clk 0:01:34]} 27... Ne6 {[%clk 0:00:19.8]} 28. f3 {[%clk
0:01:24.7]} 28... Nf6 {[%clk 0:00:17.5]} 29. Rd2 {[%clk 0:01:16.3]} 29... Rec8
{[%clk 0:00:14.8]} 30. c3 {[%clk 0:01:10.1]} 30... bxc3 {[%clk 0:00:11.9]} 31.
Rd3 {[%clk 0:01:08]} 31... Nd4 {[%clk 0:00:07.5]} 32. Bf1 {[%clk 0:00:50]} 32...
a2 {[%clk 0:00:06.5]} 33. Rxc3 {[%clk 0:00:47.6]} 33... Rcb8 {[%clk 0:00:06.5]}
34. Ra3 {[%clk 0:00:27]} 34... Rxa3 {[%clk 0:00:05.5]} 35. Bxa3 {[%clk
0:00:25.7]} 35... Ra8 {[%clk 0:00:03.6]} 36. Rxa2 {[%clk 0:00:23.5]} 36... Nd7
{[%clk 0:00:01.8]} 37. Ra1 {[%clk 0:00:23.2]} 1-0

[Event "*** SCC Grand Prix: Titled Tuesday Blitz"]
[Site "Chess.com"]
[Date "2020.10.06"]
[Round "5"]
[White "Sesleria"]
[Black "ZverevLev"]
[Result "0-1"]
[WhiteElo "2108"]
[BlackElo "2335"]
[TimeControl "180+1"]
[EndTime "10:56:59 PDT"]
[Termination "ZverevLev won by resignation"]

1. e4 {[%clk 0:02:57.9]} 1... e5 {[%clk 0:02:58.9]} 2. Nf3 {[%clk 0:02:57.4]}
2... Nc6 {[%clk 0:02:58.2]} 3. Bb5 {[%clk 0:02:56.5]} 3... a6 {[%clk 0:02:56.4]}
4. Ba4 {[%clk 0:02:56.1]} 4... Nf6 {[%clk 0:02:55]} 5. d3 {[%clk 0:02:54.9]}
5... Bc5 {[%clk 0:02:52.5]} 6. c3 {[%clk 0:02:53.2]} 6... b5 {[%clk 0:02:46.3]}
7. Bb3 {[%clk 0:02:45.4]} 7... d6 {[%clk 0:02:46.5]} 8. h3 {[%clk 0:02:44.6]}
8... Bb6 {[%clk 0:02:45.1]} 9. Nbd2 {[%clk 0:02:27]} 9... h6 {[%clk 0:02:36.3]}
10. Nf1 {[%clk 0:02:23.1]} 10... O-O {[%clk 0:02:34.1]} 11. Ne3 {[%clk
0:02:13.1]} 11... Be6 {[%clk 0:02:27.3]} 12. O-O {[%clk 0:01:58.7]} 12... Ne7
{[%clk 0:02:23.2]} 13. a4 {[%clk 0:01:44.5]} 13... c5 {[%clk 0:02:14.7]} 14.
axb5 {[%clk 0:01:43.6]} 14... axb5 {[%clk 0:02:06.7]} 15. Rxa8 {[%clk
0:01:43.4]} 15... Qxa8 {[%clk 0:02:07.6]} 16. Nh4 {[%clk 0:01:34.1]} 16... d5
{[%clk 0:02:01.9]} 17. exd5 {[%clk 0:01:02.4]} 17... Nexd5 {[%clk 0:01:59.5]}
18. Nxd5 {[%clk 0:01:00.8]} 18... Nxd5 {[%clk 0:01:56.8]} 19. Qf3 {[%clk
0:00:30.4]} 19... Nf6 {[%clk 0:01:43.5]} 20. Qxa8 {[%clk 0:00:28]} 20... Rxa8
{[%clk 0:01:39.9]} 21. Bxe6 {[%clk 0:00:28.1]} 21... fxe6 {[%clk 0:01:38.6]} 22.
Be3 {[%clk 0:00:26.9]} 22... Nd5 {[%clk 0:01:26]} 23. Nf3 {[%clk 0:00:22.5]}
23... Nxe3 {[%clk 0:01:23]} 24. fxe3 {[%clk 0:00:22.9]} 24... c4 {[%clk
0:01:20.5]} 25. d4 {[%clk 0:00:23.1]} 25... exd4 {[%clk 0:01:18.7]} 26. exd4
{[%clk 0:00:24]} 26... Ra2 {[%clk 0:01:16.9]} 27. Rf2 {[%clk 0:00:24.3]} 27...
Bc7 {[%clk 0:01:06.8]} 28. Re2 {[%clk 0:00:23.8]} 28... Bg3 {[%clk 0:00:46.4]}
29. Nh2 {[%clk 0:00:19.9]} 29... Ra1+ {[%clk 0:00:40.8]} 30. Nf1 {[%clk
0:00:19.9]} 30... Kf7 {[%clk 0:00:41]} 31. Re3 {[%clk 0:00:18.9]} 31... Bd6
{[%clk 0:00:39.9]} 32. Rf3+ {[%clk 0:00:17.6]} 32... Ke7 {[%clk 0:00:40.1]} 33.
Kf2 {[%clk 0:00:18.1]} 33... Rb1 {[%clk 0:00:37.2]} 34. Ke3 {[%clk 0:00:16.1]}
34... Rxb2 {[%clk 0:00:35.8]} 35. Nd2 {[%clk 0:00:16.1]} 35... Rc2 {[%clk
0:00:31.7]} 36. Ne4 {[%clk 0:00:16.4]} 36... Ba3 {[%clk 0:00:26]} 37. g4 {[%clk
0:00:13.5]} 37... Bc1+ {[%clk 0:00:24.4]} 38. Nd2 {[%clk 0:00:10.7]} 38... Rxd2
{[%clk 0:00:19.8]} 0-1

[Event "*** SCC Grand Prix: Titled Tuesday Blitz"]
[Site "Chess.com"]
[Date "2020.10.06"]
[Round "5"]
[White "vinniethepooh"]
[Black "andresgv36"]
[Result "0-1"]
[WhiteElo "2560"]
[BlackElo "2423"]
[TimeControl "180+1"]
[EndTime "10:57:02 PDT"]
[Termination "andresgv36 won on time"]

1. d4 {[%clk 0:03:00.9]} 1... Nf6 {[%clk 0:02:55.8]} 2. c4 {[%clk 0:03:00.9]}
2... e6 {[%clk 0:02:55.1]} 3. Nc3 {[%clk 0:03:00.4]} 3... Bb4 {[%clk 0:02:54.9]}
4. f3 {[%clk 0:03:00.8]} 4... c5 {[%clk 0:02:51.7]} 5. d5 {[%clk 0:03:00.5]}
5... b5 {[%clk 0:02:49.3]} 6. e4 {[%clk 0:03:00.7]} 6... O-O {[%clk 0:02:49.4]}
7. e5 {[%clk 0:03:00]} 7... Ne8 {[%clk 0:02:37]} 8. f4 {[%clk 0:03:00.1]} 8...
d6 {[%clk 0:02:27.4]} 9. Nf3 {[%clk 0:02:59.8]} 9... exd5 {[%clk 0:02:15.1]} 10.
cxd5 {[%clk 0:03:00.7]} 10... Qb6 {[%clk 0:02:02.6]} 11. Bd2 {[%clk 0:02:55.4]}
11... c4 {[%clk 0:01:54.9]} 12. a4 {[%clk 0:02:53.4]} 12... Nc7 {[%clk
0:00:57.3]} 13. axb5 {[%clk 0:02:48.3]} 13... Nd7 {[%clk 0:00:54.6]} 14. Be2
{[%clk 0:02:31.4]} 14... Bb7 {[%clk 0:00:43.7]} 15. Na4 {[%clk 0:01:53.6]} 15...
Qxb5 {[%clk 0:00:40.1]} 16. Nd4 {[%clk 0:01:30]} 16... Qa5 {[%clk 0:00:24.7]}
17. Nc6 {[%clk 0:01:10.6]} 17... Bxc6 {[%clk 0:00:23.7]} 18. dxc6 {[%clk
0:01:11.5]} 18... Nc5 {[%clk 0:00:18.6]} 19. Nxc5 {[%clk 0:00:33.9]} 19... Bxd2+
{[%clk 0:00:16.3]} 20. Qxd2 {[%clk 0:00:07.4]} 20... Qxa1+ {[%clk 0:00:15.9]}
21. Kf2 {[%clk 0:00:08.1]} 21... Qxh1 {[%clk 0:00:15.5]} 22. exd6 {[%clk
0:00:08.8]} 22... Ne6 {[%clk 0:00:14.4]} 23. Nxe6 {[%clk 0:00:06]} 23... fxe6
{[%clk 0:00:14.3]} 24. d7 {[%clk 0:00:06.5]} 24... Qxh2 {[%clk 0:00:12.8]} 25.
Bf3 {[%clk 0:00:02.4]} 25... Qh4+ {[%clk 0:00:11.7]} 26. g3 {[%clk 0:00:02.2]}
26... Qe7 {[%clk 0:00:07.8]} 27. c7 {[%clk 0:00:01.7]} 27... Qc5+ {[%clk
0:00:08]} 28. Kg2 {[%clk 0:00:01.2]} 28... Qxc7 {[%clk 0:00:08.4]} 29. Bxa8
{[%clk 0:00:01.9]} 29... Rxa8 {[%clk 0:00:08.9]} 30. Qd4 {[%clk 0:00:02.4]}
30... Rd8 {[%clk 0:00:08.7]} 31. f5 {[%clk 0:00:02.8]} 31... Qxd7 {[%clk
0:00:08.3]} 32. Qe5 {[%clk 0:00:02.2]} 32... Qd5+ {[%clk 0:00:08.2]} 0-1

[Event "*** SCC Grand Prix: Titled Tuesday Blitz"]
[Site "Chess.com"]
[Date "2020.10.06"]
[Round "5"]
[White "maxsergej"]
[Black "renehp"]
[Result "0-1"]
[WhiteElo "2127"]
[BlackElo "2473"]
[TimeControl "180+1"]
[EndTime "10:57:03 PDT"]
[Termination "renehp won by resignation"]

1. e4 {[%clk 0:02:59.9]} 1... d5 {[%clk 0:02:59.8]} 2. exd5 {[%clk 0:02:59.6]}
2... Nf6 {[%clk 0:02:59.8]} 3. Bb5+ {[%clk 0:02:58.5]} 3... Nbd7 {[%clk
0:02:59.6]} 4. Nc3 {[%clk 0:02:56.9]} 4... g6 {[%clk 0:02:59.5]} 5. d4 {[%clk
0:02:55.5]} 5... Bg7 {[%clk 0:02:59.5]} 6. Be3 {[%clk 0:02:51.5]} 6... O-O
{[%clk 0:02:59.3]} 7. h3 {[%clk 0:02:49.2]} 7... Nb6 {[%clk 0:02:57.1]} 8. Be2
{[%clk 0:02:44.3]} 8... Nfxd5 {[%clk 0:02:53.6]} 9. Nxd5 {[%clk 0:02:44.2]} 9...
Nxd5 {[%clk 0:02:54.5]} 10. Nf3 {[%clk 0:02:43.2]} 10... c5 {[%clk 0:02:53.1]}
11. O-O {[%clk 0:02:30.6]} 11... Nxe3 {[%clk 0:02:50.6]} 12. fxe3 {[%clk
0:02:30.3]} 12... Bh6 {[%clk 0:02:44.8]} 13. Qd2 {[%clk 0:02:13.5]} 13... cxd4
{[%clk 0:02:43.2]} 14. Qxd4 {[%clk 0:02:09.3]} 14... Bf5 {[%clk 0:02:29.1]} 15.
c4 {[%clk 0:01:54.2]} 15... Bg7 {[%clk 0:02:24.8]} 16. Qxd8 {[%clk 0:01:42.7]}
16... Rfxd8 {[%clk 0:02:25.7]} 17. g4 {[%clk 0:01:40]} 17... Bd3 {[%clk
0:02:16.8]} 18. Bxd3 {[%clk 0:01:34.1]} 18... Rxd3 {[%clk 0:02:17.7]} 19. Rad1
{[%clk 0:01:32.4]} 19... Rad8 {[%clk 0:02:14.9]} 20. Rxd3 {[%clk 0:01:21.9]}
20... Rxd3 {[%clk 0:02:15.8]} 21. b3 {[%clk 0:01:21]} 21... Rxe3 {[%clk
0:02:13.8]} 22. Kf2 {[%clk 0:01:21.1]} 22... Rc3 {[%clk 0:02:12.1]} 23. Re1
{[%clk 0:01:18.8]} 23... e6 {[%clk 0:02:10.2]} 24. Re2 {[%clk 0:01:17.5]} 24...
Bf8 {[%clk 0:02:10.4]} 25. Rd2 {[%clk 0:01:10.8]} 25... a5 {[%clk 0:02:08]} 26.
Ng5 {[%clk 0:00:59]} 26... h6 {[%clk 0:02:00.6]} 27. Ne4 {[%clk 0:00:58.5]}
27... Rxh3 {[%clk 0:01:58.8]} 28. Rd7 {[%clk 0:00:55.7]} 28... Bb4 {[%clk
0:01:34.1]} 29. Kg2 {[%clk 0:00:50.9]} 29... Re3 {[%clk 0:01:31.8]} 30. Nf6+
{[%clk 0:00:48.6]} 30... Kg7 {[%clk 0:01:30.6]} 31. Ne8+ {[%clk 0:00:48.2]}
31... Kf8 {[%clk 0:01:30.3]} 32. Nf6 {[%clk 0:00:44.3]} 32... Bc3 {[%clk
0:01:20.5]} 33. g5 {[%clk 0:00:34.6]} 33... hxg5 {[%clk 0:01:18.6]} 34. Nh7+
{[%clk 0:00:31]} 34... Ke8 {[%clk 0:01:12.8]} 35. Rxb7 {[%clk 0:00:30.1]} 35...
g4 {[%clk 0:01:07.5]} 36. Ng5 {[%clk 0:00:27.3]} 36... Be5 {[%clk 0:00:54.8]}
37. Nxf7 {[%clk 0:00:23.6]} 37... Bf4 {[%clk 0:00:52.4]} 38. Nh8 {[%clk
0:00:18.9]} 38... Re2+ {[%clk 0:00:48]} 39. Kf1 {[%clk 0:00:17.9]} 39... Rxa2
{[%clk 0:00:47.5]} 40. Nxg6 {[%clk 0:00:17.7]} 40... Bd6 {[%clk 0:00:41.7]} 41.
Rb6 {[%clk 0:00:13.8]} 41... Kd7 {[%clk 0:00:39.8]} 42. Rb7+ {[%clk 0:00:12.3]}
42... Kc6 {[%clk 0:00:38.9]} 43. Ra7 {[%clk 0:00:11.7]} 43... g3 {[%clk
0:00:37.8]} 44. Nf8 {[%clk 0:00:09.1]} 44... g2+ {[%clk 0:00:37]} 0-1

[Event "*** SCC Grand Prix: Titled Tuesday Blitz"]
[Site "Chess.com"]
[Date "2020.10.06"]
[Round "5"]
[White "fabianvivasz"]
[Black "Falcon28dz"]
[Result "0-1"]
[WhiteElo "2351"]
[BlackElo "2227"]
[TimeControl "180+1"]
[EndTime "10:57:03 PDT"]
[Termination "Falcon28dz won on time"]

1. e4 {[%clk 0:02:58]} 1... e6 {[%clk 0:02:59.5]} 2. d4 {[%clk 0:02:57.2]} 2...
d5 {[%clk 0:02:59.5]} 3. Nd2 {[%clk 0:02:55.9]} 3... Nf6 {[%clk 0:02:59.4]} 4.
e5 {[%clk 0:02:55.2]} 4... Nfd7 {[%clk 0:02:59.9]} 5. Bd3 {[%clk 0:02:55.5]}
5... c5 {[%clk 0:02:59.5]} 6. c3 {[%clk 0:02:56]} 6... Nc6 {[%clk 0:02:59.4]} 7.
Ngf3 {[%clk 0:02:55.5]} 7... g6 {[%clk 0:02:41]} 8. h4 {[%clk 0:02:49.2]} 8...
h6 {[%clk 0:02:39.6]} 9. a3 {[%clk 0:02:46.3]} 9... Qb6 {[%clk 0:02:23.4]} 10.
Qa4 {[%clk 0:02:43.7]} 10... Be7 {[%clk 0:02:10.6]} 11. Nf1 {[%clk 0:02:34]}
11... a6 {[%clk 0:01:52.6]} 12. Ng3 {[%clk 0:02:26.1]} 12... cxd4 {[%clk
0:01:29.4]} 13. cxd4 {[%clk 0:02:24.4]} 13... Qa5+ {[%clk 0:01:28.1]} 14. Qxa5
{[%clk 0:02:24.4]} 14... Nxa5 {[%clk 0:01:29]} 15. Be3 {[%clk 0:01:53.8]} 15...
b5 {[%clk 0:01:13.1]} 16. Ke2 {[%clk 0:01:12.1]} 16... Nb6 {[%clk 0:01:10.3]}
17. Nd2 {[%clk 0:00:40.2]} 17... Nac4 {[%clk 0:00:49.8]} 18. Nxc4 {[%clk
0:00:16.9]} 18... bxc4 {[%clk 0:00:37]} 19. Bc2 {[%clk 0:00:16.7]} 19... Bd7
{[%clk 0:00:37.4]} 20. b3 {[%clk 0:00:13.2]} 20... cxb3 {[%clk 0:00:34.4]} 21.
Bxb3 {[%clk 0:00:14.1]} 21... Bb5+ {[%clk 0:00:35.1]} 22. Kf3 {[%clk 0:00:13.5]}
22... Kd7 {[%clk 0:00:34.9]} 23. h5 {[%clk 0:00:09.3]} 23... g5 {[%clk
0:00:34.6]} 24. a4 {[%clk 0:00:06.1]} 24... Bc4 {[%clk 0:00:32.7]} 25. Rhb1
{[%clk 0:00:06.5]} 25... Rhb8 {[%clk 0:00:25.8]} 26. a5 {[%clk 0:00:06.5]} 26...
Bxb3 {[%clk 0:00:24.7]} 27. axb6 {[%clk 0:00:02.5]} 27... Rxb6 {[%clk 0:00:24]}
28. Nf1 {[%clk 0:00:01.9]} 28... Rab8 {[%clk 0:00:23.7]} 29. Nd2 {[%clk
0:00:01.6]} 29... Bc2 {[%clk 0:00:21.9]} 30. Rxb6 {[%clk 0:00:01.4]} 30... Rxb6
{[%clk 0:00:22.8]} 31. Rc1 {[%clk 0:00:01.1]} 31... Bd3 {[%clk 0:00:23.1]} 32.
Ra1 {[%clk 0:00:01.6]} 32... Bb4 {[%clk 0:00:22.2]} 33. g4 {[%clk 0:00:02.1]}
33... a5 {[%clk 0:00:22.1]} 34. Nb3 {[%clk 0:00:02.4]} 34... Rb5 {[%clk
0:00:20.6]} 35. Ra2 {[%clk 0:00:02.2]} 35... Bc4 {[%clk 0:00:20.8]} 36. Rb2
{[%clk 0:00:01.8]} 36... Bc3 {[%clk 0:00:20.1]} 0-1

[Event "*** SCC Grand Prix: Titled Tuesday Blitz"]
[Site "Chess.com"]
[Date "2020.10.06"]
[Round "5"]
[White "PotapovaM"]
[Black "Tsyhanchuk_Stanislav"]
[Result "1-0"]
[WhiteElo "2562"]
[BlackElo "2397"]
[TimeControl "180+1"]
[EndTime "10:57:04 PDT"]
[Termination "PotapovaM won by resignation"]

1. d4 {[%clk 0:03:00.9]} 1... Nf6 {[%clk 0:02:58.4]} 2. c4 {[%clk 0:03:00.7]}
2... g6 {[%clk 0:02:58.3]} 3. Nc3 {[%clk 0:03:00.6]} 3... Bg7 {[%clk 0:02:59.2]}
4. e4 {[%clk 0:03:00.8]} 4... O-O {[%clk 0:03:00.1]} 5. h3 {[%clk 0:03:01.3]}
5... c5 {[%clk 0:02:56]} 6. d5 {[%clk 0:03:01.2]} 6... d6 {[%clk 0:02:53.8]} 7.
Nf3 {[%clk 0:03:00.9]} 7... e6 {[%clk 0:02:51.5]} 8. Bd3 {[%clk 0:03:01.3]} 8...
exd5 {[%clk 0:02:43.6]} 9. exd5 {[%clk 0:03:02.2]} 9... Re8+ {[%clk 0:02:43]}
10. Be3 {[%clk 0:03:02.7]} 10... Bf5 {[%clk 0:02:43.3]} 11. O-O {[%clk
0:02:56.1]} 11... Ne4 {[%clk 0:02:35.3]} 12. Bxe4 {[%clk 0:02:25.6]} 12... Bxe4
{[%clk 0:02:36.2]} 13. Nd2 {[%clk 0:02:16.4]} 13... Bxc3 {[%clk 0:02:06.1]} 14.
bxc3 {[%clk 0:02:17.3]} 14... Nd7 {[%clk 0:02:05.9]} 15. Re1 {[%clk 0:01:50.1]}
15... Bd3 {[%clk 0:01:59.5]} 16. Bh6 {[%clk 0:01:44.8]} 16... Qf6 {[%clk
0:01:57.4]} 17. Rc1 {[%clk 0:01:29.3]} 17... Rxe1+ {[%clk 0:01:48.8]} 18. Qxe1
{[%clk 0:01:30.2]} 18... g5 {[%clk 0:01:48.4]} 19. Qe3 {[%clk 0:01:30.4]} 19...
Qxh6 {[%clk 0:01:45.3]} 20. Qxd3 {[%clk 0:01:29.7]} 20... Re8 {[%clk 0:01:45.5]}
21. Ne4 {[%clk 0:01:17.2]} 21... f5 {[%clk 0:01:43.1]} 22. Ng3 {[%clk
0:01:08.9]} 22... f4 {[%clk 0:01:42.8]} 23. Nf5 {[%clk 0:01:08.2]} 23... Qf6
{[%clk 0:01:42.1]} 24. g4 {[%clk 0:00:53.5]} 24... Ne5 {[%clk 0:01:35.8]} 25.
Qe4 {[%clk 0:00:48.8]} 25... h5 {[%clk 0:01:22.6]} 26. f3 {[%clk 0:00:34.8]}
26... hxg4 {[%clk 0:01:21.9]} 27. hxg4 {[%clk 0:00:34.6]} 27... Qg6 {[%clk
0:01:04.7]} 28. Kg2 {[%clk 0:00:18.9]} 28... Kf7 {[%clk 0:00:49]} 29. Rh1 {[%clk
0:00:03.6]} 29... b5 {[%clk 0:00:26.5]} 30. Rh6 {[%clk 0:00:02.6]} 30... Nxg4
{[%clk 0:00:17.4]} 31. Nxd6+ {[%clk 0:00:02.6]} 31... Kf8 {[%clk 0:00:09.4]} 32.
Qxg6 {[%clk 0:00:02.8]} 32... Re2+ {[%clk 0:00:09.1]} 33. Kf1 {[%clk 0:00:03.3]}
33... Rf2+ {[%clk 0:00:10]} 34. Ke1 {[%clk 0:00:03.2]} 1-0

[Event "*** SCC Grand Prix: Titled Tuesday Blitz"]
[Site "Chess.com"]
[Date "2020.10.06"]
[Round "5"]
[White "ARTHURMOTIVATOR"]
[Black "TudorAnton"]
[Result "0-1"]
[WhiteElo "2331"]
[BlackElo "2504"]
[TimeControl "180+1"]
[EndTime "10:57:04 PDT"]
[Termination "TudorAnton won by resignation"]

1. e4 {[%clk 0:03:00.9]} 1... c5 {[%clk 0:02:55]} 2. b3 {[%clk 0:02:58.8]} 2...
d5 {[%clk 0:02:54]} 3. exd5 {[%clk 0:02:57.7]} 3... Qxd5 {[%clk 0:02:54.9]} 4.
Nc3 {[%clk 0:02:55.9]} 4... Qe5+ {[%clk 0:02:47.8]} 5. Be2 {[%clk 0:02:50.1]}
5... Bg4 {[%clk 0:02:47.6]} 6. Bb2 {[%clk 0:02:45.5]} 6... Nc6 {[%clk
0:02:47.2]} 7. Rb1 {[%clk 0:02:35]} 7... Nd4 {[%clk 0:02:43.3]} 8. Nb5 {[%clk
0:02:27.5]} 8... Nf6 {[%clk 0:02:36.4]} 9. h3 {[%clk 0:02:05.6]} 9... Bxe2
{[%clk 0:02:29.6]} 10. Nxe2 {[%clk 0:02:03.6]} 10... Qxe2+ {[%clk 0:02:28]} 11.
Qxe2 {[%clk 0:02:01.7]} 11... Nxe2 {[%clk 0:02:28.9]} 12. Kxe2 {[%clk
0:02:02.3]} 12... Nd5 {[%clk 0:02:22]} 13. Rhe1 {[%clk 0:01:40.4]} 13... a6
{[%clk 0:02:21.2]} 14. Nc3 {[%clk 0:01:36.6]} 14... Nxc3+ {[%clk 0:02:19.7]} 15.
Bxc3 {[%clk 0:01:34.3]} 15... f6 {[%clk 0:02:20.6]} 16. Kf1 {[%clk 0:01:30.6]}
16... Kf7 {[%clk 0:02:20.2]} 17. f4 {[%clk 0:01:26.7]} 17... Rd8 {[%clk
0:02:19.7]} 18. Re4 {[%clk 0:01:19.3]} 18... e6 {[%clk 0:02:12.1]} 19. Rbe1
{[%clk 0:01:17.5]} 19... Rd6 {[%clk 0:02:11.7]} 20. d4 {[%clk 0:01:11.6]} 20...
Rc6 {[%clk 0:02:05.2]} 21. R1e2 {[%clk 0:01:00.4]} 21... cxd4 {[%clk 0:02:01.5]}
22. Bxd4 {[%clk 0:00:59.1]} 22... Ba3 {[%clk 0:02:00.3]} 23. c4 {[%clk
0:00:57.3]} 23... Rd8 {[%clk 0:01:59.7]} 24. Bc3 {[%clk 0:00:51.5]} 24... Rd7
{[%clk 0:01:59.3]} 25. Rd2 {[%clk 0:00:47.5]} 25... Rxd2 {[%clk 0:01:55.6]} 26.
Bxd2 {[%clk 0:00:45.9]} 26... Rd6 {[%clk 0:01:56.5]} 27. Ke2 {[%clk 0:00:45.9]}
27... Bb2 {[%clk 0:01:56]} 28. c5 {[%clk 0:00:41]} 28... Rd5 {[%clk 0:01:51.4]}
29. Be3 {[%clk 0:00:41.2]} 29... Bc3 {[%clk 0:01:49]} 30. Rc4 {[%clk 0:00:41.2]}
30... Ba5 {[%clk 0:01:48.4]} 31. c6 {[%clk 0:00:40]} 31... bxc6 {[%clk
0:01:44.3]} 32. Rxc6 {[%clk 0:00:40.9]} 32... e5 {[%clk 0:01:38.6]} 33. f5
{[%clk 0:00:30.2]} 33... e4 {[%clk 0:01:29.4]} 34. g4 {[%clk 0:00:28.9]} 34...
g6 {[%clk 0:01:28.1]} 35. fxg6+ {[%clk 0:00:27.2]} 35... hxg6 {[%clk 0:01:29]}
36. Rxa6 {[%clk 0:00:27.4]} 36... f5 {[%clk 0:01:28.9]} 37. a3 {[%clk
0:00:24.3]} 37... Bc3 {[%clk 0:01:26.4]} 38. Ra7+ {[%clk 0:00:21.5]} 38... Ke6
{[%clk 0:01:18.2]} 39. Rc7 {[%clk 0:00:20.5]} 39... Be5 {[%clk 0:01:17.9]} 40.
Rc6+ {[%clk 0:00:20.3]} 40... Kf7 {[%clk 0:01:17.2]} 41. gxf5 {[%clk 0:00:18.1]}
41... gxf5 {[%clk 0:01:18.1]} 42. Rc5 {[%clk 0:00:17.1]} 42... Rxc5 {[%clk
0:01:13.9]} 43. Bxc5 {[%clk 0:00:17.5]} 43... f4 {[%clk 0:01:14.6]} 44. a4
{[%clk 0:00:16.9]} 44... Ke6 {[%clk 0:01:15]} 45. a5 {[%clk 0:00:16.8]} 45...
Kd5 {[%clk 0:01:15.9]} 46. a6 {[%clk 0:00:16]} 46... f3+ {[%clk 0:01:16.5]} 47.
Kf2 {[%clk 0:00:10.6]} 47... Kxc5 {[%clk 0:01:17]} 48. a7 {[%clk 0:00:10.7]}
48... Bd4+ {[%clk 0:01:17.9]} 49. Kg3 {[%clk 0:00:07]} 49... f2 {[%clk
0:01:15.3]} 50. a8=Q {[%clk 0:00:07.9]} 50... f1=Q {[%clk 0:01:13.6]} 51. Qa7+
{[%clk 0:00:08]} 51... Kd5 {[%clk 0:01:11.1]} 52. Qd7+ {[%clk 0:00:08.9]} 52...
Kc5 {[%clk 0:01:10.6]} 53. Qa7+ {[%clk 0:00:08.8]} 53... Kd5 {[%clk 0:01:07.2]}
54. Qd7+ {[%clk 0:00:08.7]} 54... Ke5 {[%clk 0:01:08.1]} 55. Qg7+ {[%clk
0:00:08.2]} 55... Qf6 {[%clk 0:01:06.5]} 56. Qxf6+ {[%clk 0:00:08.2]} 56... Kxf6
{[%clk 0:01:07.4]} 57. Kf4 {[%clk 0:00:08.6]} 57... e3 {[%clk 0:01:07.9]} 58.
Ke4 {[%clk 0:00:09.4]} 58... e2 {[%clk 0:01:07.7]} 59. Kf4 {[%clk 0:00:10.3]}
59... e1=Q {[%clk 0:01:08.6]} 0-1